fUST/lending_fUST_20250927
["ID","MTS","AMOUNT","RATE_DAILY","PERIOD"]
[387857273,1758930701498,-151.14409,0.00047123,120]
[387857274,1758930701508,-752.340432,0.00047123,15]
[387857275,1758930701517,-151.14409,0.00047123,120]
[387857276,1758930701527,-518.93526304,0.00047123,120]
[387857277,1758930701537,-483.80710909,0.00047123,120]
[387857278,1758930701547,-752.340442,0.00047123,15]
[387857279,1758930701556,-486.04,0.00047123,120]
[387857280,1758930701565,-751.19,0.00047123,120]
[387857281,1758930701575,-151.14409,0.00047123,120]
[387857282,1758930701584,-480.0,0.00047123,120]
[387857283,1758930701593,-151.144093,0.00047123,120]
[387857284,1758930701602,-925.57,0.00047123,120]
[387857285,1758930701611,-480.0,0.00047123,120]
[387857286,1758930701621,-1783.09,0.00047123,120]
[387857287,1758930701630,-5759.01,0.00047123,120]
[387857288,1758930701639,-480.0,0.00047123,120]
[387857289,1758930701648,-480.0,0.00047123,120]
[387857290,1758930701658,-480.0,0.00047123,120]
[387857291,1758930701670,-484.29050031,0.00047123,120]
[387857292,1758930701681,-480.0,0.00047123,120]
[387857293,1758930701691,-509.86423656,0.00047123,120]
[387857294,1758930701700,-530.43,0.00047123,120]
[387857295,1758930701709,-275.05069981,0.00047123,120]
[387857296,1758930701718,-480.0,0.00047123,120]
[387857297,1758930701727,-480.0,0.00047123,120]
[387857298,1758930701736,-610.69,0.00047123,120]
[387857299,1758930701747,-1354.62,0.00047123,120]
[387857300,1758930701756,-360.78203165,0.00047123,120]
[387857301,1758930701766,-482.24931815,0.00047123,120]
[387857302,1758930701775,-480.0,0.00047123,120]
[387857303,1758930701784,-480.0,0.00047123,120]
[387857304,1758930701793,-480.0,0.00047123,120]
[387857305,1758930701802,-480.0,0.00047123,120]
[387857306,1758930701811,-1055.5,0.00047123,120]
[387857307,1758930701820,-480.0,0.00047123,120]
[387857308,1758930701830,-5949.84,0.00047123,3]
[387857309,1758930701839,-13857.49,0.00047123,120]
[387857310,1758930701848,-480.0,0.00047123,120]
[387857311,1758930701857,-480.0,0.00047123,120]
[387857312,1758930701867,-480.0,0.00047123,120]
[387857313,1758930701877,-688.13,0.00047123,120]
[387857314,1758930701886,-480.0,0.00047123,120]
[387857315,1758930701895,-520.46,0.00047123,120]
[387857316,1758930701905,-582.06,0.00047123,120]
[387857317,1758930701914,-480.0,0.00047123,120]
[387857318,1758930701923,-2713.39,0.00047123,120]
[387857319,1758930701933,-480.0,0.00047123,120]
[387857320,1758930701942,-1323.12,0.00047123,120]
[387857321,1758930701953,-4137.77,0.00047123,120]
[387857322,1758930701962,-480.0,0.00047123,120]
[387857323,1758930701971,-491.57,0.00047123,120]
[387857324,1758930701981,-1013.67,0.00047123,120]
[387857325,1758930701991,-480.0,0.00047123,120]
[387857326,1758930702000,-480.0,0.00047123,120]
[387857327,1758930702010,-5978.0,0.00047123,120]
[387857328,1758930702019,-1604.73,0.00047123,120]
[387857329,1758930702029,-480.0,0.00047123,120]
[387857330,1758930702038,-480.0,0.00047123,120]
[387857331,1758930702048,-1322.87,0.00047123,120]
[387857332,1758930702058,-480.0,0.00047123,120]
[387857333,1758930702068,-480.0,0.00047123,120]
[387857334,1758930702078,-856.38,0.00047123,120]
[387857335,1758930702087,-905.9,0.00047123,120]
[387857336,1758930702096,-480.0,0.00047123,120]
[387857337,1758930702105,-480.0,0.00047123,120]
[387857338,1758930702115,-1798.95,0.00047123,120]
[387857339,1758930702125,-480.0,0.00047123,120]
[387857340,1758930702134,-481.34781596,0.00047123,120]
[387857341,1758930702144,-480.0,0.00047123,120]
[387857342,1758930702153,-480.0,0.00047123,120]
[387857343,1758930702163,-529.3,0.00047123,120]
[387857344,1758930702172,-480.0,0.00047123,120]
[387857345,1758930702182,-480.0,0.00047123,120]
[387857346,1758930702191,-512.77,0.00047123,120]
[387857347,1758930702202,-711.52,0.00047123,120]
[387857348,1758930702211,-762.04,0.00047123,120]
[387857349,1758930702221,-1000.0,0.00047123,120]
[387857350,1758930702231,-1024.21,0.00047123,120]
[387857351,1758930702240,-480.0,0.00047123,120]
[387857352,1758930702250,-480.0,0.00047123,120]
[387857353,1758930702260,-480.0,0.00047123,120]
[387857354,1758930702270,-742.5,0.00047123,120]
[387857355,1758930702279,-24445.84,0.00047123,120]
[387857356,1758930702289,-1023.2,0.00047123,120]
[387857357,1758930702298,-484.50564552,0.00047123,120]
[387857358,1758930702307,-480.0,0.00047123,120]
[387857359,1758930702317,-882.42,0.00047123,120]
[387857360,1758930702327,-480.0,0.00047123,120]
[387857361,1758930702336,-527.90802831,0.00047123,7]
[387857362,1758930702346,-480.0,0.00047123,120]
[387857363,1758930702356,-480.0,0.00047123,120]
[387857364,1758930702365,-480.0,0.00047123,120]
[387857365,1758930702375,-2297.6,0.00047123,120]
[387857366,1758930702384,-2345.73,0.00047123,120]
[387857367,1758930702393,-3576.08,0.00047123,120]
[387857368,1758930702402,-6250.23,0.00047123,120]
[387857369,1758930702412,-480.0,0.00047123,120]
[387857370,1758930702421,-5284.46,0.00047123,120]
[387857371,1758930702430,-480.0,0.00047123,120]
[387857372,1758930702440,-480.0,0.00047123,120]
[387857373,1758930702449,-1794.86,0.00047123,120]
[387857374,1758930702459,-601.27,0.00047123,120]
[387857375,1758930702468,-480.0,0.00047123,120]
[387857376,1758930702478,-480.0,0.00047123,120]
[387857377,1758930702487,-480.0,0.00047123,120]
[387857378,1758930702496,-6790.44,0.00047123,120]
[387857379,1758930702506,-480.0,0.00047123,120]
[387857380,1758930702515,-480.0,0.00047123,120]
[387857381,1758930702525,-12700.72,0.00047123,120]
[387857382,1758930702534,-4513.91,0.00047123,120]
[387857383,1758930702544,-3127.71,0.00047123,120]
[387857384,1758930702553,-480.0,0.00047123,120]
[387857385,1758930702563,-616.19,0.00047123,120]
[387857386,1758930702572,-531.92298472,0.00047123,120]
[387857387,1758930702582,-485.26,0.00047123,120]
[387857388,1758930702592,-4636.29,0.00047123,120]
[387857389,1758930702601,-480.0,0.00047123,120]
[387857390,1758930702610,-480.0,0.00047123,120]
[387857391,1758930702620,-480.0,0.00047123,120]
[387857392,1758930702629,-1238.7,0.00047123,120]
[387857393,1758930702638,-1841.32,0.00047123,120]
[387857394,1758930702648,-1724.29,0.00047123,120]
[387857395,1758930702657,-480.0,0.00047123,120]
[387857396,1758930702667,-1256.07,0.00047123,120]
[387857397,1758930702680,-480.0,0.00047123,120]
[387857398,1758930702690,-480.0,0.00047123,120]
[387857399,1758930702699,-1111.04,0.00047123,120]
[387857400,1758930702709,-2425.11,0.00047123,120]
[387857401,1758930702719,-716.75,0.00047123,120]
[387857402,1758930702729,-480.0,0.00047123,120]
[387857403,1758930702738,-491.73347929,0.00047123,120]
[387857404,1758930702748,-480.0,0.00047123,120]
[387857405,1758930702758,-376.41164733,0.00047123,120]
[387857406,1758930702767,-480.0,0.00047123,120]
[387857407,1758930702777,-581.5,0.00047123,120]
[387857408,1758930702788,-480.0,0.00047123,120]
[387857409,1758930702797,-480.0,0.00047123,120]
[387857410,1758930702807,-6606.03,0.00047123,120]
[387857411,1758930702816,-1442.05,0.00047123,120]
[387857412,1758930702826,-480.0,0.00047123,120]
[387857413,1758930702837,-547.46,0.00047123,120]
[387857414,1758930702847,-571.19,0.00047123,120]
[387857415,1758930702856,-795.57,0.00047123,120]
[387857416,1758930702866,-480.0,0.00047123,120]
[387857417,1758930702875,-151.0,0.00047123,120]
[387857418,1758930702885,-705.84,0.00047123,120]
[387857419,1758930702894,-480.0,0.00047123,120]
[387857420,1758930702903,-151.0,0.00047123,120]
[387857421,1758930702912,-151.0,0.00047123,120]
[387857422,1758930702921,-480.0,0.00047123,120]
[387857423,1758930702931,-480.0,0.00047123,120]
[387857424,1758930702940,-480.0,0.00047123,120]
[387857425,1758930702950,-797.55,0.00047123,120]
[387857426,1758930702959,-2495.47,0.00047123,120]
[387857427,1758930702969,-2326.534053,0.00047123,120]
[387857428,1758930702978,-1440.69,0.00047123,120]
[387857429,1758930702988,-480.0,0.00047123,120]
[387857430,1758930702998,-151.0,0.00047123,120]
[387857431,1758930703007,-2326.534053,0.00047123,120]
[387857432,1758930703016,-1344.92,0.00047123,120]
[387857433,1758930703026,-671.91,0.00047123,120]
[387857434,1758930703035,-2326.534053,0.00047123,120]
[387857435,1758930703044,-2326.534046,0.00047123,120]
[387857436,1758930703053,-743.3,0.00047123,120]
[387857437,1758930703063,-480.0,0.00047123,120]
[387857438,1758930703072,-1952.62,0.00047123,120]
[387857439,1758930703081,-480.0,0.00047123,120]
[387857440,1758930703091,-480.0,0.00047123,30]
[387857441,1758930703100,-480.0,0.00047123,120]
[387857442,1758930703109,-578.91,0.00047123,120]
[387857443,1758930703119,-480.0,0.00047123,120]
[387857444,1758930703128,-480.0,0.00047123,120]
[387857445,1758930703137,-1312.29,0.00047123,120]
[387857446,1758930703146,-2323.54,0.00047123,120]
[387857447,1758930703156,-1456.57,0.00047123,120]
[387857448,1758930703167,-2753.73,0.00047123,120]
[387857449,1758930703178,-570.71,0.00047123,120]
[387857450,1758930703187,-244.32066301,0.00047123,120]
[387857451,1758930703197,-4506.41,0.00047123,120]
[387857452,1758930703207,-151.0,0.00047123,120]
[387857453,1758930703217,-480.0,0.00047123,120]
[387857454,1758930703226,-480.0,0.00047123,120]
[387857455,1758930703236,-2881.1,0.00047123,21]
[387857456,1758930703245,-2820.16,0.00047123,120]
[387857457,1758930703255,-536.62,0.00047123,120]
[387857458,1758930703264,-1867.94,0.00047123,120]
[387857459,1758930703274,-980.13,0.00047123,120]
[387857460,1758930703284,-888.34,0.00047123,120]
[387857461,1758930703293,-9374.26,0.00047123,120]
[387857462,1758930703303,-177.75663915,0.00047123,120]
[387857463,1758930703312,-728.57,0.00047123,120]
[387857464,1758930703321,-480.0,0.00047123,120]
[387857465,1758930703331,-480.0,0.00047123,120]
[387857466,1758930703340,-578.7,0.00047123,120]
[387857467,1758930703350,-480.0,0.00047123,120]
[387857468,1758930703359,-480.0,0.00047123,120]
[387857469,1758930703368,-2171.98,0.00047123,120]
[387857470,1758930703378,-5982.08,0.00047123,120]
[387857471,1758930703388,-151.0,0.00047123,120]
[387857472,1758930703397,-151.0,0.00047123,120]
[387857473,1758930703407,-480.0,0.00047123,7]
[387857474,1758930703416,-151.0,0.00047123,120]
[387857475,1758930703426,-480.0,0.00047123,120]
[387857476,1758930703436,-480.0,0.00047123,120]
[387857477,1758930703445,-1307.11121,0.00047123,120]
[387857478,1758930703455,-1178.96,0.00047123,120]
[387857479,1758930703464,-151.0,0.00047123,120]
[387857480,1758930703473,-1307.11121,0.00047123,120]
[387857481,1758930703482,-603.24,0.00047123,120]
[387857482,1758930703491,-480.0,0.00047123,120]
[387857483,1758930703500,-151.0,0.00047123,120]
[387857484,1758930703510,-1307.11121,0.00047123,120]
[387857485,1758930703519,-12312.42,0.00047123,120]
[387857486,1758930703528,-3348.44,0.00047123,120]
[387857487,1758930703538,-1307.111212,0.00047123,120]
[387857488,1758930703608,-480.0,0.00047123,120]
[387857489,1758930703617,-151.0,0.00047123,120]
[387857490,1758930703626,-487.982454,0.00047123,120]
[387857491,1758930703635,-480.0,0.00047123,120]
[387857492,1758930703645,-480.0,0.00047123,120]
[387857493,1758930703654,-480.0,0.00047123,120]
[387857494,1758930703663,-480.0,0.00047123,120]
[387857495,1758930703677,-480.0,0.00047123,120]
[387857496,1758930703686,-151.0,0.00047123,120]
[387857497,1758930703706,-151.750105,0.00047123,120]
[387857498,1758930703723,-487.982454,0.00047123,120]
[387857499,1758930703733,-480.0,0.00047123,120]
[387857500,1758930703743,-484.15671719,0.00047123,120]
[387857501,1758930703757,-151.0,0.00047123,120]
[387857502,1758930703767,-151.750105,0.00047123,120]
[387857503,1758930703777,-487.982454,0.00047123,120]
[387857504,1758930703787,-761.77,0.00047123,120]
[387857505,1758930703797,-2476.81,0.00047123,120]
[387857506,1758930703807,-480.0,0.00047123,120]
[387857507,1758930703816,-151.750105,0.00047123,120]
[387857508,1758930703825,-487.982445,0.00047123,120]
[387857509,1758930703835,-151.0,0.00047123,120]
[387857510,1758930703844,-151.75011,0.00047123,120]
[387857511,1758930703854,-847.29,0.00047123,120]
[387857512,1758930703863,-3391.21,0.00047123,120]
[387857513,1758930703873,-1309.23,0.00047123,120]
[387857514,1758930703882,-480.0,0.00047123,120]
[387857515,1758930703891,-480.0,0.00047123,120]
[387857516,1758930703901,-480.0,0.00047123,120]
[387857517,1758930703910,-645.27,0.00047123,120]
[387857518,1758930703919,-480.0,0.00047123,120]
[387857519,1758930703929,-480.0,0.00047123,120]
[387857520,1758930703938,-480.0,0.00047123,120]
[387857521,1758930703947,-480.0,0.00047123,120]
[387857522,1758930703956,-948.72,0.00047123,120]
[387857523,1758930703966,-480.0,0.00047123,120]
[387857524,1758930703975,-482.26780237,0.00047123,120]
[387857525,1758930703984,-480.0,0.00047123,120]
[387857526,1758930703994,-633.74,0.00047123,120]
[387857527,1758930704003,-480.0,0.00047123,120]
[387857528,1758930704012,-3378.19,0.00047123,120]
[387857529,1758930704022,-2958.62,0.00047123,120]
[387857530,1758930704031,-13211.37,0.00047123,120]
[387857531,1758930704040,-480.0,0.00047123,120]
[387857532,1758930704049,-480.0,0.00047123,120]
[387857533,1758930704059,-4724.16,0.00047123,120]
[387857534,1758930704069,-480.0,0.00047123,120]
[387857535,1758930704078,-480.0,0.00047123,120]
[387857536,1758930704087,-480.0,0.00047123,20]
[387857537,1758930704097,-1029.55,0.00047123,30]
[387857538,1758930704106,-480.0,0.00047123,120]
[387857539,1758930704116,-480.0,0.00047123,120]
[387857540,1758930704125,-805.78,0.00047123,120]
[387857541,1758930704134,-912.9,0.00047123,120]
[387857542,1758930704144,-480.0,0.00047123,120]
[387857543,1758930704153,-169.341716,0.00047123,120]
[387857544,1758930704163,-480.0,0.00047123,120]
[387857545,1758930704173,-639.03,0.00047123,120]
[387857546,1758930704183,-607.64,0.00047123,120]
[387857547,1758930704192,-480.0,0.00047123,120]
[387857548,1758930704202,-169.341716,0.00047123,120]
[387857549,1758930704211,-480.0,0.00047123,120]
[387857550,1758930704220,-540.39,0.00047123,120]
[387857551,1758930704229,-480.0,0.00047123,120]
[387857552,1758930704238,-594.396662,0.00047123,120]
[387857553,1758930704248,-1971.41,0.00047123,120]
[387857554,1758930704258,-268.68589125,0.00047123,120]
[387857555,1758930704267,-594.396662,0.00047123,120]
[387857556,1758930704277,-169.341716,0.00047123,120]
[387857557,1758930704286,-594.396662,0.00047123,120]
[387857558,1758930704295,-480.0,0.00047123,120]
[387857559,1758930704304,-480.0,0.00047123,120]
[387857560,1758930704314,-2584.13,0.00047123,120]
[387857561,1758930704323,-169.341723,0.00047123,120]
[387857562,1758930704332,-594.396662,0.00047123,120]
[387857563,1758930704341,-1397.29,0.00047123,120]
[387857564,1758930704351,-480.0,0.00047123,120]
[387857565,1758930704360,-1076.06,0.00047123,120]
[387857566,1758930704370,-480.0,0.00047123,120]
[387857567,1758930704380,-3296.42,0.00047123,120]
[387857568,1758930704389,-480.0,0.00047123,120]
[387857569,1758930704399,-4054.29106,0.00047123,120]
[387857570,1758930704408,-480.0,0.00047123,120]
[387857571,1758930704418,-480.0,0.00047123,120]
[387857572,1758930704427,-166.123884,0.00047123,120]
[387857573,1758930704437,-4054.29106,0.00047123,120]
[387857574,1758930704446,-480.0,0.00047123,120]
[387857575,1758930704456,-480.0,0.00047123,120]
[387857576,1758930704465,-4054.29106,0.00047123,120]
[387857577,1758930704474,-166.123884,0.00047123,120]
[387857578,1758930704483,-480.0,0.00047123,120]
[387857579,1758930704492,-166.123884,0.00047123,120]
[387857580,1758930704502,-4054.29105278,0.00047123,120]
[387857581,1758930704511,-480.0,0.00047123,120]
[387857582,1758930704520,-631.0,0.00047219,2]
[387857583,1758930704530,-2160.0,0.00047219,2]
[387857584,1758930704540,-500.0,0.00047335,60]
[387857585,1758930704550,-600.0,0.00047368,60]
[387857586,1758930704560,-486.35376306,0.00047397,7]
[387857587,1758930704570,-480.0,0.00047397,120]
[387857588,1758930704580,-589.43,0.00047397,120]
[387857589,1758930704590,-580.96,0.00047397,120]
[387857590,1758930704605,-480.0,0.00047397,120]
[387857591,1758930704614,-480.0,0.00047397,120]
[387857592,1758930704624,-480.0,0.00047397,120]
[387857593,1758930704633,-480.0,0.00047397,120]
[387857594,1758930704643,-480.0,0.00047397,120]
[387857595,1758930704653,-464.44113856,0.00047397,120]
[387857596,1758930704664,-480.0,0.00047397,120]
[387857597,1758930704682,-480.0,0.00047397,120]
[387857598,1758930704692,-480.0,0.00047397,120]
[387857599,1758930704702,-487.11994277,0.00047397,120]
[387857600,1758930704712,-480.0,0.00047397,120]
[387857601,1758930704722,-480.0,0.00047397,120]
[387857602,1758930704731,-480.0,0.00047397,120]
[387857603,1758930704741,-480.0,0.00047397,120]
[387857604,1758930704752,-480.0,0.00047397,120]
[387857605,1758930704763,-1085.97,0.00047397,120]
[387857606,1758930704773,-480.0,0.00047397,120]
[387857607,1758930704782,-480.0,0.00047397,120]
[387857608,1758930704792,-480.0,0.00047397,120]
[387857609,1758930704801,-480.0,0.00047397,120]
[387857610,1758930704811,-480.0,0.00047397,120]
[387857611,1758930704820,-480.0,0.00047397,120]
[387857612,1758930704830,-480.0,0.00047397,120]
[387857613,1758930704840,-327.88197094,0.00047397,120]
[387857614,1758930704849,-300.17,0.00047397,120]
[387857615,1758930704859,-480.0,0.00047397,120]
[387857616,1758930704868,-480.0,0.00047397,120]
[387857617,1758930704878,-480.0,0.00047397,120]
[387857618,1758930704888,-480.0,0.00047397,120]
[387857619,1758930704898,-480.0,0.00047397,120]
[387857620,1758930704908,-490.47,0.00047397,120]
[387857621,1758930704918,-480.0,0.00047397,120]
[387857622,1758930704927,-480.0,0.00047397,120]
[387857623,1758930704937,-480.0,0.00047397,120]
[387857624,1758930704946,-480.0,0.00047397,120]
[387857625,1758930704956,-480.0,0.00047397,120]
[387857626,1758930704966,-480.0,0.00047397,120]
[387857627,1758930704975,-480.0,0.00047397,120]
[387857628,1758930704984,-480.0,0.00047397,120]
[387857629,1758930704994,-508.87104483,0.00047397,120]
[387857630,1758930705003,-480.0,0.00047397,120]
[387857631,1758930705013,-483.67048119,0.00047397,100]
[387857632,1758930705022,-480.0,0.00047397,120]
[387857633,1758930705032,-480.0,0.00047397,120]
[387857634,1758930705042,-480.0,0.00047397,120]
[387857635,1758930705052,-480.0,0.00047397,120]
[387857636,1758930705062,-480.0,0.00047397,120]
[387857637,1758930705071,-385.93168371,0.00047397,120]
[387857638,1758930705081,-1480.61,0.00047397,120]
[387857639,1758930705091,-549.86,0.00047397,120]
[387857640,1758930705100,-480.0,0.00047397,120]
[387857641,1758930705110,-480.0,0.00047397,120]
[387857642,1758930705119,-480.0,0.00047397,120]
[387857643,1758930705129,-480.0,0.00047397,120]
[387857644,1758930705138,-500.0,0.00047397,14]
[387857645,1758930705148,-480.0,0.00047397,120]
[387857646,1758930705158,-480.0,0.00047397,120]
[387857647,1758930705167,-480.0,0.00047397,120]
[387857648,1758930705177,-480.0,0.00047397,120]
[387857649,1758930705187,-519.62,0.00047397,120]
[387857650,1758930705197,-515.89609582,0.00047397,120]
[387857651,1758930705206,-1520.5,0.00047397,120]
[387857652,1758930705216,-609.63,0.00047397,120]
[387857653,1758930705225,-480.0,0.00047397,120]
[387857654,1758930705235,-480.0,0.00047397,120]
[387857655,1758930705244,-480.0,0.00047397,120]
[387857656,1758930705254,-480.0,0.00047397,120]
[387857657,1758930705264,-480.0,0.00047397,120]
[387857658,1758930705274,-480.0,0.00047397,120]
[387857659,1758930705284,-480.0,0.00047397,120]
[387857660,1758930705294,-480.0,0.00047397,120]
[387857661,1758930705304,-607.53321559,0.00047397,120]
[387857662,1758930705314,-831.39,0.00047397,120]
[387857663,1758930705323,-761.44,0.00047397,120]
[387857664,1758930705332,-480.0,0.00047397,120]
[387857665,1758930705342,-480.0,0.00047397,120]
[387857666,1758930705351,-480.0,0.00047397,120]
[387857667,1758930705361,-480.0,0.00047397,120]
[387857668,1758930705371,-480.0,0.00047397,120]
[387857669,1758930705380,-480.0,0.00047397,120]
[387857670,1758930705390,-480.0,0.00047397,120]
[387857671,1758930705400,-480.0,0.00047397,120]
[387857672,1758930705409,-480.0,0.00047397,120]
[387857673,1758930705420,-480.0,0.00047397,120]
[387857674,1758930705429,-480.0,0.00047397,120]
[387857675,1758930705439,-480.0,0.00047397,120]
[387857676,1758930705448,-480.0,0.00047397,120]
[387857677,1758930705458,-480.0,0.00047397,120]
[387857678,1758930705467,-1122.86,0.00047397,120]
[387857679,1758930705477,-578.52,0.00047397,120]
[387857680,1758930705487,-399.41199741,0.00047397,120]
[387857681,1758930705497,-512.15,0.00047397,120]
[387857682,1758930705507,-480.0,0.00047397,120]
[387857683,1758930705517,-541.18,0.00047397,120]
[387857684,1758930705526,-737.02,0.00047397,120]
[387857685,1758930705536,-706.32,0.00047397,120]
[387857686,1758930705546,-480.0,0.00047397,120]
[387857687,1758930705556,-480.0,0.00047397,120]
[387857688,1758930705566,-683.22,0.00047397,120]
[387857689,1758930705576,-480.0,0.00047397,120]
[387857690,1758930705586,-480.0,0.00047397,120]
[387857691,1758930705596,-1082.49,0.00047397,120]
[387857692,1758930705606,-480.0,0.00047397,120]
[387857693,1758930705615,-480.0,0.00047397,120]
[387857694,1758930705625,-480.0,0.00047397,120]
[387857695,1758930705635,-480.0,0.00047397,120]
[387857696,1758930705645,-208.63424074,0.00047397,120]
[387857697,1758930705655,-480.0,0.00047397,120]
[387857698,1758930705666,-480.0,0.00047397,120]
[387857699,1758930705680,-480.0,0.00047397,120]
[387857700,1758930705692,-480.0,0.00047397,120]
[387857701,1758930705702,-480.0,0.00047397,120]
[387857702,1758930705711,-480.0,0.00047397,120]
[387857703,1758930705721,-480.0,0.00047397,120]
[387857704,1758930705731,-480.0,0.00047397,120]
[387857705,1758930705740,-480.0,0.00047397,120]
[387857706,1758930705750,-480.0,0.00047397,120]
[387857707,1758930705760,-480.0,0.00047397,120]
[387857708,1758930705770,-699.76,0.00047397,120]
[387857709,1758930705779,-480.0,0.00047397,120]
[387857710,1758930705789,-480.0,0.00047397,120]
[387857711,1758930705799,-480.0,0.00047397,120]
[387857712,1758930705808,-480.0,0.00047397,120]
[387857713,1758930705818,-512.02914474,0.00047397,120]
[387857714,1758930705828,-480.0,0.00047397,120]
[387857715,1758930705838,-480.0,0.00047397,120]
[387857716,1758930705847,-480.0,0.00047397,120]
[387857717,1758930705857,-480.0,0.00047397,120]
[387857718,1758930705866,-480.0,0.00047397,120]
[387857719,1758930705875,-480.0,0.00047397,120]
[387857720,1758930705885,-1287.22,0.00047397,120]
[387857721,1758930705895,-480.0,0.00047397,120]
[387857722,1758930705904,-1144.78,0.00047397,120]
[387857723,1758930705914,-480.0,0.00047397,120]
[387857724,1758930705926,-1111.83,0.00047397,120]
[387857725,1758930705935,-480.0,0.00047397,120]
[387857726,1758930705945,-480.0,0.00047397,120]
[387857727,1758930705955,-480.0,0.00047397,120]
[387857728,1758930705964,-480.0,0.00047397,120]
[387857729,1758930705974,-480.0,0.00047397,120]
[387857730,1758930705983,-736.45,0.00047397,120]
[387857731,1758930705993,-500.16410048,0.00047397,120]
[387857732,1758930706002,-480.0,0.00047397,120]
[387857733,1758930706012,-480.0,0.00047397,120]
[387857734,1758930706022,-1736.26,0.00047397,120]
[387857735,1758930706031,-480.0,0.00047397,120]
[387857736,1758930706041,-480.0,0.00047397,120]
[387857737,1758930706051,-996.24,0.00047397,120]
[387857738,1758930706060,-480.0,0.00047397,120]
[387857739,1758930706070,-480.0,0.00047397,120]
[387857740,1758930706080,-480.0,0.00047397,120]
[387857741,1758930706090,-665.94,0.00047397,120]
[387857742,1758930706100,-480.0,0.00047397,120]
[387857743,1758930706110,-480.0,0.00047397,120]
[387857744,1758930706119,-720.74,0.00047397,120]
[387857745,1758930706129,-480.0,0.00047397,120]
[387857746,1758930706139,-1950.02,0.00047397,120]
[387857747,1758930706148,-480.0,0.00047397,120]
[387857748,1758930706158,-480.0,0.00047397,120]
[387857749,1758930706169,-2666.53,0.00047397,120]
[387857750,1758930706178,-1001.23,0.00047397,120]
[387857751,1758930706188,-808.71,0.00047397,120]
[387857752,1758930706198,-494.46855809,0.00047397,120]
[387857753,1758930706208,-480.0,0.00047397,120]
[387857754,1758930706218,-480.0,0.00047397,120]
[387857755,1758930706228,-891.41,0.00047397,120]
[387857756,1758930706238,-480.0,0.00047397,120]
[387857757,1758930706247,-480.0,0.00047397,120]
[387857758,1758930706257,-480.0,0.00047397,120]
[387857759,1758930706266,-480.0,0.00047397,120]
[387857760,1758930706276,-480.0,0.00047397,120]
[387857761,1758930706285,-480.0,0.00047397,120]
[387857762,1758930706295,-480.0,0.00047397,120]
[387857763,1758930706305,-855.83,0.00047397,120]
[387857764,1758930706315,-1161.26,0.00047397,120]
[387857765,1758930706324,-480.0,0.00047397,120]
[387857766,1758930706334,-480.0,0.00047397,120]
[387857767,1758930706344,-480.0,0.00047397,120]
[387857768,1758930706353,-480.0,0.00047397,120]
[387857769,1758930706363,-480.0,0.00047397,120]
[387857770,1758930706373,-652.45,0.00047397,120]
[387857771,1758930706383,-480.0,0.00047397,120]
[387857772,1758930706393,-480.0,0.00047397,120]